fUST/lending_fUST_20260114
["ID","MTS","AMOUNT","RATE_DAILY","PERIOD"]
[401905434,1768398690149,-500.0,0.00030136,120]
[401905435,1768398690158,-500.0,0.00030136,120]
[401905436,1768398690167,-500.0,0.00030136,120]
[401905437,1768398690176,-500.0,0.00030136,120]
[401905438,1768398690185,-500.0,0.00030136,120]
[401905439,1768398690194,-500.0,0.00030136,120]
[401905440,1768398690203,-187.20765033,0.00030136,120]
[401905441,1768398690212,-500.0,0.00030136,120]
[401905442,1768398690221,-500.0,0.00030136,120]
[401905443,1768398690230,-500.0,0.00030136,120]
[401905444,1768398690239,-500.0,0.00030136,120]
[401905445,1768398690249,-500.0,0.00030136,120]
[401905446,1768398690259,-500.0,0.00030136,120]
[401905447,1768398690269,-500.0,0.00030136,120]
[401905448,1768398690280,-500.0,0.00030136,120]
[401905449,1768398690290,-500.0,0.00030136,120]
[401905450,1768398690300,-500.0,0.00030136,120]
[401905451,1768398690310,-500.0,0.00030136,120]
[401905452,1768398690320,-500.0,0.00030136,120]
[401905453,1768398690330,-488.42913125,0.00030136,120]
[401905454,1768398690339,-500.0,0.00030136,120]
[401905455,1768398690348,-500.0,0.00030136,120]
[401905456,1768398690357,-500.0,0.00030136,120]
[401905457,1768398690366,-500.0,0.00030136,120]
[401905458,1768398690375,-500.0,0.00030136,120]
[401905459,1768398690385,-500.0,0.00030136,120]
[401905460,1768398690394,-500.0,0.00030136,120]
[401905461,1768398690403,-500.0,0.00030136,120]
[401905462,1768398690412,-500.0,0.00030136,120]
[401905463,1768398690421,-500.0,0.00030136,120]
[401905464,1768398690431,-500.0,0.00030136,120]
[401905465,1768398690440,-500.0,0.00030136,120]
[401905466,1768398690449,-500.0,0.00030136,120]
[401905467,1768398690459,-500.0,0.00030136,120]
[401905468,1768398690468,-500.0,0.00030136,120]
[401905469,1768398690477,-500.0,0.00030136,120]
[401905470,1768398690486,-500.0,0.00030136,120]
[401905471,1768398690494,-500.0,0.00030136,120]
[401905472,1768398690503,-431.0872156,0.00030136,120]
[401905473,1768398690512,-500.0,0.00030136,120]
[401905474,1768398690521,-500.0,0.00030136,120]
[401905475,1768398690530,-500.0,0.00030136,120]
[401905476,1768398690538,-500.0,0.00030136,120]
[401905477,1768398690547,-569.00286087,0.00030136,120]
[401905478,1768398690557,-500.0,0.00030136,120]
[401905479,1768398690569,-500.0,0.00030136,120]
[401905480,1768398690578,-500.0,0.00030136,120]
[401905481,1768398690587,-500.0,0.00030136,120]
[401905482,1768398690597,-357.56778376,0.00030136,120]
[401905483,1768398690607,-331.52752223,0.00030136,120]
[401905484,1768398690617,-500.0,0.00030136,120]
[401905485,1768398690626,-500.0,0.00030136,120]
[401905486,1768398690635,-500.0,0.00030136,120]
[401905487,1768398690644,-500.0,0.00030136,120]
[401905488,1768398690653,-500.0,0.00030136,120]
[401905489,1768398690663,-297.19318623,0.00030136,120]
[401905490,1768398690673,-500.0,0.00030136,120]
[401905491,1768398690683,-500.0,0.00030136,120]
[401905492,1768398690692,-500.0,0.00030136,120]
[401905493,1768398690702,-500.0,0.00030136,120]
[401905494,1768398690712,-500.0,0.00030136,120]
[401905495,1768398690721,-500.0,0.00030136,120]
[401905496,1768398690732,-500.0,0.00030136,120]
[401905497,1768398690742,-403.69197349,0.00030136,120]
[401905498,1768398690754,-500.0,0.00030136,120]
[401905499,1768398690763,-500.0,0.00030136,120]
[401905500,1768398690772,-500.0,0.00030136,120]
[401905501,1768398690781,-500.0,0.00030136,30]
[401905502,1768398690790,-613.64429435,0.00030136,30]
[401905503,1768398690799,-292.80758758,0.00030136,120]
[401905504,1768398690808,-500.0,0.00030136,120]
[401905505,1768398690817,-500.0,0.00030136,120]
[401905506,1768398690826,-633.419635,0.00030136,7]
[401905507,1768398690835,-500.0,0.00030136,120]
[401905508,1768398690845,-500.0,0.00030136,120]
[401905509,1768398690854,-500.0,0.00030136,120]
[401905510,1768398690862,-500.0,0.00030136,120]
[401905511,1768398690871,-500.0,0.00030136,120]
[401905512,1768398690881,-500.0,0.00030136,120]
[401905513,1768398690890,-638.25,0.00030136,120]
[401905514,1768398690899,-232.75439003,0.00030136,120]
[401905515,1768398690907,-500.0,0.00030136,120]
[401905516,1768398690916,-500.0,0.00030136,120]
[401905517,1768398690926,-633.419635,0.00030136,7]
[401905518,1768398690934,-500.0,0.00030136,120]
[401905519,1768398690944,-638.25,0.00030136,120]
[401905520,1768398690954,-500.0,0.00030136,120]
[401905521,1768398690963,-549.72,0.00030136,120]
[401905522,1768398690973,-500.0,0.00030136,120]
[401905523,1768398690982,-638.25,0.00030136,120]
[401905524,1768398690992,-500.0,0.00030136,120]
[401905525,1768398691001,-500.0,0.00030136,120]
[401905526,1768398691011,-549.72,0.00030136,120]
[401905527,1768398691020,-500.0,0.00030136,120]
[401905528,1768398691032,-500.0,0.00030136,120]
[401905529,1768398691041,-638.25,0.00030136,120]
[401905530,1768398691051,-500.0,0.00030136,120]
[401905531,1768398691060,-549.72,0.00030136,120]
[401905532,1768398691070,-500.0,0.00030136,120]
[401905533,1768398691079,-638.25,0.00030136,120]
[401905534,1768398691088,-500.0,0.00030136,120]
[401905535,1768398691098,-500.0,0.00030136,120]
[401905536,1768398691108,-549.72,0.00030136,120]
[401905537,1768398691117,-500.0,0.00030136,120]
[401905538,1768398691126,-500.0,0.00030136,120]
[401905539,1768398691135,-638.25,0.00030136,120]
[401905540,1768398691144,-500.0,0.00030136,120]
[401905541,1768398691153,-549.72,0.00030136,120]
[401905542,1768398691162,-500.0,0.00030136,120]
[401905543,1768398691171,-447.15628524,0.00030136,120]
[401905544,1768398691180,-633.419635,0.00030136,7]
[401905545,1768398691189,-638.25,0.00030136,120]
[401905546,1768398691199,-500.0,0.00030136,120]
[401905547,1768398691209,-549.72,0.00030136,120]
[401905548,1768398691218,-500.0,0.00030136,120]
[401905549,1768398691228,-633.419635,0.00030136,7]
[401905550,1768398691237,-638.25,0.00030136,120]
[401905551,1768398691246,-421.2914358,0.00030136,120]
[401905552,1768398691256,-549.72,0.00030136,120]
[401905553,1768398691265,-500.0,0.00030136,120]
[401905554,1768398691277,-500.0,0.00030136,120]
[401905555,1768398691287,-549.72,0.00030136,120]
[401905556,1768398691296,-638.25,0.00030136,120]
[401905557,1768398691305,-503.77604746,0.00030136,120]
[401905558,1768398691315,-500.0,0.00030136,120]
[401905559,1768398691324,-549.72,0.00030136,120]
[401905560,1768398691334,-638.25,0.00030136,120]
[401905561,1768398691345,-500.0,0.00030136,120]
[401905562,1768398691354,-500.0,0.00030136,120]
[401905563,1768398691363,-549.72,0.00030136,120]
[401905564,1768398691372,-638.25,0.00030136,120]
[401905565,1768398691381,-500.0,0.00030136,120]
[401905566,1768398691390,-168.97780957,0.00030136,120]
[401905567,1768398691400,-549.72,0.00030136,120]
[401905568,1768398691409,-638.25,0.00030136,120]
[401905569,1768398691418,-595.99395118,0.00030136,120]
[401905570,1768398691427,-549.72,0.00030136,120]
[401905571,1768398691437,-633.419635,0.00030136,7]
[401905572,1768398691446,-638.25,0.00030136,120]
[401905573,1768398691455,-549.72,0.00030136,120]
[401905574,1768398691464,-638.25,0.00030136,120]
[401905575,1768398691474,-633.419635,0.00030136,7]
[401905576,1768398691483,-549.72,0.00030136,120]
[401905577,1768398691493,-638.25,0.00030136,120]
[401905578,1768398691502,-549.72,0.00030136,120]
[401905579,1768398691511,-638.25,0.00030136,120]
[401905580,1768398691520,-549.72,0.00030136,120]
[401905581,1768398691529,-638.25,0.00030136,120]
[401905582,1768398691538,-796.68,0.00030136,120]
[401905583,1768398691546,-549.72,0.00030136,120]
[401905584,1768398691555,-638.25,0.00030136,120]
[401905585,1768398691564,-796.68,0.00030136,120]
[401905586,1768398691573,-549.72,0.00030136,120]
[401905587,1768398691583,-638.25,0.00030136,120]
[401905588,1768398691593,-633.419635,0.00030136,7]
[401905589,1768398691729,-500.0,0.00030136,120]
[401905590,1768398691739,-796.68,0.00030136,120]
[401905591,1768398691748,-549.72,0.00030136,120]
[401905592,1768398691757,-638.25,0.00030136,120]
[401905593,1768398691766,-500.0,0.00030136,120]
[401905594,1768398691775,-633.419634,0.00030136,7]
[401905595,1768398691784,-796.68,0.00030136,120]
[401905596,1768398691793,-549.72,0.00030136,120]
[401905597,1768398691802,-638.25,0.00030136,120]
[401905598,1768398691811,-500.0,0.00030136,120]
[401905599,1768398691821,-796.68,0.00030136,120]
[401905600,1768398691831,-549.72,0.00030136,120]
[401905601,1768398691840,-638.25,0.00030136,120]
[401905602,1768398691849,-500.0,0.00030136,120]
[401905603,1768398691858,-796.68,0.00030136,120]
[401905604,1768398691867,-549.72,0.00030136,120]
[401905605,1768398691876,-159.4495385,0.00030136,120]
[401905606,1768398693127,-776.51914437,0.00023426,2]
[401905607,1768398698079,10000.01,9.244e-05,2]
[401905608,1768398698106,10000.01,9.244e-05,2]
[401905609,1768398698134,10000.01,9.244e-05,2]
[401905610,1768398698163,10000.01,9.244e-05,2]
[401905611,1768398698190,10000.01,9.244e-05,2]
[401905612,1768398698217,10000.01,9.244e-05,2]
[401905613,1768398698246,10000.01,9.244e-05,2]
[401905614,1768398698279,10000.01,9.244e-05,2]
[401905615,1768398698308,10000.01,9.244e-05,2]
[401905616,1768398707041,-196.41,6.761e-05,2]
[401905617,1768398707074,-245.51,7.042e-05,2]
[401905618,1768398707105,-294.62,7.324e-05,2]
[401905619,1768398707630,-343.72,7.606e-05,2]
[401905620,1768398710292,-392.82,7.888e-05,2]
[401905621,1768398710323,-441.93,8.169e-05,2]
[401905622,1768398710353,-491.03,8.451e-05,2]
[401905623,1768398714466,-9694.37456051,9.244e-05,2]
[401905624,1768398717298,-10000.01,9.244e-05,2]
[401905625,1768398717514,-10000.01,9.244e-05,2]
[401905626,1768398717634,-10000.01,9.244e-05,2]
[401905627,1768398717754,-10000.01,9.244e-05,2]
[401905628,1768398720507,-10000.01,9.244e-05,2]
[401905629,1768398720920,1763.51,0.000154,120]
[401905630,1768398789742,-313.7,6.873e-05,2]
[401905631,1768398789764,-163.28650261,7.2e-05,2]
[401905632,1768398791170,-207.63554956,7.2e-05,2]
[401905633,1768398793760,-256.46794783,7.2e-05,2]
[401905634,1768398793783,-192.88672286,7.527e-05,2]
[401905635,1768398796792,-222.17185254,7.527e-05,2]
[401905636,1768398798170,-295.77226088,7.527e-05,2]
[401905637,1768398800785,-230.25916372,7.527e-05,2]
[401905638,1768398800811,-53.57212557,7.855e-05,2]
[401905639,1768398802344,-268.44803052,7.855e-05,2]
[401905640,1768398804096,-203.20803785,7.855e-05,2]
[401905641,1768398806293,-187.32214499,7.855e-05,2]
[401905642,1768398807575,-283.55003313,7.855e-05,2]
[401905643,1768398809722,-217.56550528,7.855e-05,2]
[401905644,1768398864295,-261.97235303,6.334e-05,2]
[401905645,1768398866960,-12.31764697,6.334e-05,2]
[401905646,1768398866983,-261.57135351,6.636e-05,2]
[401905647,1768398869408,-159.23779811,6.636e-05,2]
[401905648,1768398871351,-127.78084838,6.636e-05,2]
[401905649,1768398871376,-39.09235303,6.937e-05,2]
[401905650,1768398873462,-181.1805002,6.937e-05,2]
[401905651,1768398878868,-300.0,6.937e-05,2]
[401905652,1768398881902,-196.9355846,6.937e-05,2]
[401905653,1768398885883,-105.67156217,6.937e-05,2]
[401905654,1768398885908,-158.63196877,7.239e-05,2]
[401905655,1768398888540,-167.76591142,7.239e-05,2]
[401905656,1768398934488,251.5,5.828e-05,2]
[401905657,1768398939932,-300.0,6.106e-05,2]
[401905658,1768398943131,-203.0,6.106e-05,2]
[401905659,1768398943155,-97.0,6.383e-05,2]
[401905660,1768398945281,-197.90840058,6.383e-05,2]
[401905661,1768398946544,-459.59159942,6.383e-05,2]
[401905662,1768398946575,-1006.0,6.661e-05,2]
[401905663,1768398946605,-1257.5,6.938e-05,2]
[401905664,1768398946638,-1509.0,7.216e-05,2]
[401905665,1768398946715,-1535.82680116,7.493e-05,2]
[401905666,1768398949854,-224.67319884,7.493e-05,2]
[401905667,1768398949886,-2012.0,7.771e-05,2]
[401905668,1768398949918,-2263.5,8.048e-05,2]
[401905669,1768398949993,-999.66360232,8.326e-05,2]
[401905670,1768398955159,-1515.33639768,8.326e-05,2]
[401905671,1768398955193,-300.0,8.746e-05,2]
[401905672,1768398955229,-300.0,8.746e-05,2]
[401905673,1768398955280,-1200.0,8.746e-05,2]
[401905674,1768398955316,-300.0,8.921e-05,2]
[401905675,1768398955360,-300.0,8.921e-05,2]
[401905676,1768398955397,-300.0,8.921e-05,2]
[401905677,1768398955429,-300.0,8.921e-05,2]
[401905678,1768398955463,-300.0,8.921e-05,2]
[401905679,1768398955494,-69.33720464,8.921e-05,2]
[401905680,1768398955666,-230.66279536,8.921e-05,2]
[401905681,1768398961665,-300.0,8.921e-05,2]
[401905682,1768398961696,-300.0,8.921e-05,2]
[401905683,1768398961726,-300.0,8.921e-05,2]
[401905684,1768398961757,-300.0,8.921e-05,2]
[401905685,1768398961788,-300.0,8.921e-05,2]
[401905686,1768398961819,-300.0,8.921e-05,2]
[401905687,1768398961849,-300.0,8.921e-05,2]
[401905688,1768398961882,-300.0,8.921e-05,2]
[401905689,1768398961913,-300.0,8.921e-05,2]
[401905690,1768398963130,300.0,8.92e-05,2]
[401905692,1768399011168,178.22,6.002e-05,2]
[401905693,1768399011563,267.33,6.275e-05,2]
[401905694,1768399011967,356.43,6.548e-05,2]
[401905695,1768399012381,445.54,6.821e-05,2]
[401905696,1768399012770,534.65,7.094e-05,2]
[401905697,1768399013203,623.76,7.367e-05,2]
[401905698,1768399013646,712.87,7.639e-05,2]
[401905699,1768399014076,801.98,7.912e-05,2]
[401905700,1768399014492,891.08,8.185e-05,2]
[401905701,1768399030981,5188.15,8.519e-05,2]
[401905702,1768399031003,10000.01,8.519e-05,2]
[401905703,1768399031024,10000.01,8.519e-05,2]
[401905704,1768399031046,10000.01,8.519e-05,2]
[401905705,1768399031071,2883.1569758,8.519e-05,2]
[401905707,1768399066848,300.0,8.519e-05,2]
[401905708,1768399088505,212.0,6.801e-05,2]
[401905709,1768399088918,424.01,7.125e-05,2]
[401905710,1768399089586,636.01,7.449e-05,2]
[401905711,1768399090009,848.01,7.773e-05,2]
[401905712,1768399090425,1060.02,8.096e-05,2]
[401905713,1768399090849,1272.02,8.42e-05,2]
[401905714,1768399091298,1484.02,8.744e-05,2]
[401905715,1768399094519,-1696.03,9.068e-05,2]
[401905716,1768399121248,3712.9968753,8.467e-05,2]
[401905717,1768399165925,2894.9531247,8.619e-05,2]
[401905718,1768399165950,7105.0568753,8.619e-05,2]
[401905719,1768399166007,229.73,7.231e-05,2]
[401905720,1768399166406,344.6,7.559e-05,2]
[401905721,1768399166815,459.47,7.888e-05,2]
[401905722,1768399167220,574.34,8.217e-05,2]
[401905723,1768399167633,689.2,8.545e-05,2]
[401905724,1768399168020,597.6131247,8.874e-05,2]
[401905725,1768399168045,206.4568753,8.874e-05,2]
[401905728,1768399202932,483.46,3e-05,2]
[401905729,1768399203295,483.46,3e-05,2]
[401905730,1768399204169,483.46,3.1e-05,2]
[401905731,1768399204490,483.46,3.1e-05,2]
[401905732,1768399204832,483.46,3.2e-05,2]
[401905733,1768399205173,483.46,3.2e-05,2]
[401905734,1768399206451,483.46,3.2e-05,2]
[401905735,1768399206793,483.46,3.3e-05,2]
[401905736,1768399207118,483.46,3.3e-05,2]
[401905737,1768399207560,483.46,3.4e-05,2]
[401905738,1768399207871,483.46,3.4e-05,2]
[401905739,1768399208201,483.46,3.4e-05,2]
[401905740,1768399208550,483.46,3.5e-05,2]
[401905741,1768399208902,483.46,3.5e-05,2]
[401905742,1768399209873,483.46,3.6e-05,2]
[401905743,1768399209997,483.46,3.6e-05,2]
[401905744,1768399210350,483.46,3.7e-05,2]
[401905745,1768399211417,483.46,3.7e-05,2]
[401905746,1768399211511,483.46,3.7e-05,2]
[401905747,1768399211858,483.46,3.8e-05,2]
[401905748,1768399212248,483.46,3.8e-05,2]
[401905749,1768399213420,483.46,3.9e-05,2]
[401905750,1768399215559,483.46,3.9e-05,2]
[401905751,1768399216180,483.46,3.9e-05,2]
[401905752,1768399216512,483.46,4e-05,2]
[401905753,1768399216844,483.46,4e-05,2]
[401905754,1768399217242,330.81,4.1e-05,2]
[401905755,1768399217266,152.65,4.1e-05,2]
[401905756,1768399217419,483.46,4.1e-05,2]
[401905757,1768399217547,483.46,4.1e-05,2]
[401905758,1768399217907,483.46,4.2e-05,2]
[401905759,1768399218296,483.46,4.2e-05,2]
[401905760,1768399218653,483.46,4.3e-05,2]
[401905761,1768399219037,483.46,4.3e-05,2]
[401905763,1768399219379,483.46,4.3e-05,2]
[401905764,1768399219759,483.46,4.4e-05,2]
[401905765,1768399220193,483.46,4.4e-05,2]
[401905766,1768399220517,483.46,4.5e-05,2]
[401905767,1768399220895,483.46,4.5e-05,2]
[401905768,1768399221620,483.46,4.6e-05,2]
[401905769,1768399224212,483.46,4.6e-05,2]
[401905770,1768399224546,483.46,4.6e-05,2]
[401905771,1768399226418,483.46,4.7e-05,2]
[401905772,1768399226753,483.46,4.7e-05,2]
[401905773,1768399227146,483.46,4.8e-05,2]
[401905774,1768399227575,483.46,4.8e-05,2]
[401905775,1768399227923,483.46,4.8e-05,2]
[401905776,1768399228222,483.46,4.9e-05,2]
[401905777,1768399228546,178.16,4.9e-05,2]
[401905778,1768399228574,305.3,4.9e-05,2]
[401905779,1768399229122,483.46,5e-05,2]
[401905780,1768399229595,483.46,5e-05,2]
[401905781,1768399241528,150.79,6.888e-05,2]
[401905782,1768399241920,226.18,7.201e-05,2]
[401905783,1768399242369,301.58,7.514e-05,2]
[401905784,1768399242748,376.97,7.827e-05,2]
[401905785,1768399243156,452.37,8.141e-05,2]
[401905786,1768399243550,527.76,8.454e-05,2]
[401905787,1768399243943,603.16,8.767e-05,2]
[401905788,1768399303425,218.676,9.059e-05,2]
[401905789,1768399316233,167.24,7.651e-05,2]
[401905790,1768399316808,209.05,7.969e-05,2]
[401905791,1768399317045,250.86,8.288e-05,2]
[401905792,1768399317469,292.67,8.607e-05,2]
[401905793,1768399317883,334.48,8.926e-05,2]
[401905794,1768399387503,155.08,8.757e-05,2]
[401905795,1768399460031,167.11,8.187e-05,2]
[401905796,1768399460432,190.98,8.49e-05,2]
[401905797,1768399460888,214.85,8.794e-05,2]
[401905799,1768399601407,-549.0,9.203e-05,2]
[401905800,1768399601433,-614.70934084,9.222e-05,2]
[401905801,1768399601458,-300.0,9.238e-05,2]
[401905802,1768399601482,-300.0,9.238e-05,2]
[401905803,1768399601507,-500.0,9.239e-05,2]
[401905804,1768399601530,-500.0,9.239e-05,2]
[401905805,1768399601557,-500.0,9.239e-05,2]
[401905806,1768399601580,-500.0,9.239e-05,2]
[401905807,1768399601603,-500.0,9.239e-05,2]
[401905808,1768399601627,-500.0,9.239e-05,2]
[401905809,1768399601652,-500.0,9.239e-05,2]
[401905810,1768399601676,-500.0,9.239e-05,2]
[401905811,1768399601700,-500.0,9.239e-05,2]
[401905812,1768399601725,-500.0,9.239e-05,2]
[401905813,1768399601968,-500.0,9.239e-05,2]
[401905814,1768399601991,-500.0,9.239e-05,2]
[401905815,1768399602013,-500.0,9.239e-05,2]
[401905816,1768399602039,-500.0,9.239e-05,2]
[401905817,1768399602065,-500.0,9.239e-05,2]
[401905818,1768399602089,-500.0,9.239e-05,2]
[401905819,1768399602115,-500.0,9.239e-05,2]
[401905820,1768399602137,-500.0,9.239e-05,2]
[401905821,1768399602163,-250.0,9.239e-05,2]
[401905822,1768399602186,-477.82012243,9.239e-05,2]
[401905823,1768399602212,-500.0,9.239e-05,2]
[401905824,1768399602239,-375.10548097,9.239e-05,2]
[401905825,1768399602268,-500.0,9.239e-05,2]
[401905826,1768399602295,-500.0,9.239e-05,2]
[401905827,1768399602316,-500.0,9.239e-05,2]
[401905828,1768399602341,-500.0,9.239e-05,2]
[401905829,1768399602365,-500.0,9.239e-05,2]
[401905830,1768399602391,-500.0,9.239e-05,2]
[401905831,1768399602417,-500.0,9.239e-05,2]
[401905832,1768399602441,-500.0,9.239e-05,2]
[401905833,1768399602466,-253.18991632,9.239e-05,2]
[401905834,1768399602488,-500.0,9.239e-05,2]
[401905835,1768399602513,-500.0,9.239e-05,2]
[401905836,1768399602538,-500.0,9.239e-05,2]
[401905837,1768399602564,-500.0,9.239e-05,2]
[401905838,1768399602587,-500.0,9.239e-05,2]
[401905839,1768399602609,-500.0,9.239e-05,2]
[401905840,1768399602634,-500.0,9.239e-05,2]
[401905841,1768399602658,-500.0,9.239e-05,2]
[401905842,1768399602682,-500.0,9.239e-05,2]
[401905843,1768399602707,-500.0,9.239e-05,2]
[401905844,1768399602732,-500.0,9.239e-05,2]
[401905845,1768399602755,-500.0,9.239e-05,2]
[401905846,1768399602777,-500.0,9.239e-05,2]
[401905847,1768399602803,-500.0,9.239e-05,2]
[401905848,1768399602829,-500.0,9.239e-05,2]
[401905849,1768399602857,-500.0,9.239e-05,2]
[401905850,1768399602882,-500.0,9.239e-05,2]
[401905851,1768399602909,-500.0,9.239e-05,2]
[401905852,1768399602935,-500.0,9.239e-05,2]
[401905853,1768399602958,-500.0,9.239e-05,2]
[401905854,1768399602981,-500.0,9.239e-05,2]
[401905855,1768399603004,-500.0,9.239e-05,2]
[401905856,1768399603030,-500.0,9.239e-05,2]
[401905857,1768399603055,-597.84251467,9.239e-05,2]
[401905858,1768399603079,-500.0,9.239e-05,2]
[401905859,1768399603104,-500.0,9.239e-05,2]
[401905860,1768399603128,-500.0,9.239e-05,2]
[401905861,1768399603151,-487.45528999,9.239e-05,2]
[401905862,1768399603176,-250.0,9.239e-05,2]
[401905863,1768399603203,-500.0,9.239e-05,2]
[401905864,1768399603228,-500.0,9.239e-05,2]
[401905865,1768399603254,-500.0,9.239e-05,2]
[401905866,1768399603280,-310.6578071,9.239e-05,2]
[401905867,1768399603305,-500.0,9.239e-05,2]
[401905868,1768399603330,-500.0,9.239e-05,2]
[401905869,1768399603356,-500.0,9.239e-05,2]
[401905870,1768399603381,-500.0,9.239e-05,2]
[401905871,1768399603407,-500.0,9.239e-05,2]
[401905872,1768399603433,-500.0,9.239e-05,2]
[401905873,1768399603457,-163.50231945,9.239e-05,2]
[401905874,1768399603481,-300.0,9.239e-05,2]
[401905875,1768399603507,-300.0,9.239e-05,2]
[401905876,1768399603530,-300.0,9.239e-05,2]
[401905877,1768399603555,-1200.0,9.239e-05,2]
[401905878,1768399603578,-50000.0,9.24e-05,2]
[401905879,1768399603601,-151.88,9.241e-05,2]
[401905880,1768399603625,-500.0,9.243e-05,2]
[401905881,1768399603648,-500.0,9.243e-05,2]
[401905882,1768399603671,-500.0,9.243e-05,2]
[401905883,1768399603695,-500.0,9.243e-05,2]
[401905884,1768399603718,-500.0,9.243e-05,2]
[401905885,1768399603741,-500.0,9.243e-05,2]
[401905886,1768399603772,-850305.48543949,9.244e-05,2]
[401905887,1768399603797,-600.0,9.428e-05,2]
[401905888,1768399603821,-300.0,9.428e-05,2]
[401905889,1768399603846,-300.0,9.428e-05,2]
[401905890,1768399603871,-300.0,9.428e-05,2]
[401905891,1768399603897,-300.0,9.428e-05,2]
[401905892,1768399603924,-300.0,9.428e-05,2]
[401905893,1768399603950,-300.0,9.428e-05,2]
[401905894,1768399603975,-300.0,9.428e-05,2]
[401905895,1768399604000,-300.0,9.428e-05,2]
[401905896,1768399604026,-300.0,9.428e-05,2]
[401905897,1768399604052,-300.0,9.428e-05,2]
[401905898,1768399604077,-300.0,9.428e-05,2]
[401905899,1768399604103,-300.0,9.428e-05,2]
[401905900,1768399604128,-300.0,9.428e-05,2]
[401905901,1768399604152,-300.0,9.428e-05,2]
[401905902,1768399604178,-300.0,9.428e-05,2]
[401905903,1768399604204,-5797.984582,9.428e-05,2]
[401905904,1768399604226,-151.88,9.515e-05,2]
[401905905,1768399604249,-500.0,9.517e-05,2]
[401905906,1768399604273,-151.89,9.789e-05,2]
[401905907,1768399604297,-500.0,9.791e-05,2]
[401905908,1768399604322,-2294.35136284,9.817e-05,2]
[401905909,1768399604345,-14605.0,0.0001,2]
[401905910,1768399604369,-151.0,0.0001,2]
[401905911,1768399604392,-151.0,0.0001,2]
[401905912,1768399604416,-151.0,0.0001,2]
[401905913,1768399604440,-151.0,0.0001,2]
[401905914,1768399604464,-151.0,0.0001,2]
[401905915,1768399604647,-151.0,0.0001,2]
[401905916,1768399604670,-151.0,0.0001,2]
[401905917,1768399604692,-151.0,0.0001,2]
[401905918,1768399604714,-151.0,0.0001,2]
[401905919,1768399604735,-151.0,0.0001,2]
[401905920,1768399604757,-151.0,0.0001,2]
[401905921,1768399604781,-278.5612449,0.0001,2]
[401905922,1768399604803,-151.53304833,0.0001,2]
[401905923,1768399676005,-500.0,9.239e-05,2]
[401905924,1768399676032,-500.0,9.239e-05,2]
[401905925,1768399676056,-500.0,9.239e-05,2]
[401905926,1768399676082,-500.0,9.239e-05,2]
[401905927,1768399676109,-500.0,9.239e-05,2]
[401905928,1768399676133,-500.0,9.239e-05,2]
[401905929,1768399676159,-500.0,9.239e-05,2]
[401905930,1768399676185,-500.0,9.239e-05,2]
[401905931,1768399676213,-500.0,9.239e-05,2]
[401905932,1768399676241,-500.0,9.239e-05,2]
[401905933,1768399676268,-500.0,9.239e-05,2]
[401905934,1768399676300,-500.0,9.239e-05,2]
[401905935,1768399676326,-501.04615474,9.239e-05,2]
[401905936,1768399676354,-500.0,9.239e-05,2]
[401905937,1768399676379,-500.0,9.239e-05,2]
[401905938,1768399676405,-500.0,9.239e-05,2]
[401905939,1768399676428,-500.0,9.239e-05,2]